bitfinex-derivatives/quotes_BTCF0:USTF0_20241116
["timestamp","ask_amount","ask_price","bid_price","bid_amount"]
[1731769242294,9.274e-05,91024.0,91023.0,0.87152188]
[1731769242487,9.274e-05,91024.0,91023.0,0.24348732]
[1731769243093,9.274e-05,91024.0,91023.0,0.57134262]
[1731769243289,9.274e-05,91024.0,91023.0,0.53761911]
[1731769243489,9.274e-05,91024.0,91023.0,0.23318884]
[1731769244292,9.274e-05,91024.0,91023.0,0.56110666]
[1731769244797,9.274e-05,91024.0,91023.0,0.23318884]
[1731769245201,9.274e-05,91024.0,91023.0,0.56110666]
[1731769245500,9.274e-05,91024.0,91023.0,0.10986294]
[1731769245698,0.08497274,91024.0,91023.0,0.10986294]
[1731769246005,0.054916,91016.0,91015.0,0.19688588]
[1731769246299,0.054917,91013.0,91012.0,0.0684149]
[1731769246487,0.139797,91013.0,91012.0,0.0684149]
[1731769246693,0.139797,91013.0,91006.0,0.26249348]
[1731769246894,0.3608,91008.0,91005.0,0.26249348]
[1731769247096,0.3608,91008.0,91007.0,0.10987501]
[1731769247294,0.41572,91008.0,91007.0,0.30679271]
[1731769247506,0.41572,91008.0,91007.0,0.1969177]
[1731769247688,0.41572,91008.0,91007.0,0.30679271]
[1731769248196,0.41572,91008.0,91007.0,0.10987501]
[1731769248404,0.46940254,91008.0,91007.0,0.10987501]
[1731769248601,0.054922,91005.0,91004.0,0.1969177]
[1731769248793,0.054922,91005.0,91003.0,0.1969177]
[1731769249103,0.054922,91005.0,91004.0,0.10988105]
[1731769249291,0.41504255,91008.0,91000.0,0.00164823]
[1731769249604,0.054925,91001.0,91000.0,0.00164823]
[1731769249807,0.139805,91001.0,91000.0,0.00164823]
[1731769250196,0.139805,91001.0,91000.0,0.1115335]
[1731769252416,0.054925,91001.0,91000.0,0.3084512]
[1731769252793,0.08488,91003.0,91000.0,0.1115335]
[1731769253001,0.054921,91007.0,91001.0,0.25145072]
[1731769253194,0.054921,91007.0,91002.0,0.054924]
[1731769253395,0.054921,91007.0,91005.0,0.19652672]
[1731769253605,0.054921,91007.0,91006.0,0.10432744]
[1731769253997,0.054925,91001.0,91000.0,0.00164823]
[1731769254398,0.054925,91001.0,91000.0,0.11153109]
[1731769255600,0.054925,91001.0,91000.0,0.30805781]
[1731769255902,0.054925,91001.0,91000.0,0.11153109]
[1731769261008,0.054925,91001.0,91000.0,0.10988286]
[1731769261412,0.054928,90996.0,90989.0,0.25655872]
[1731769261614,0.3608,91004.0,91000.0,0.10432744]
[1731769261615,0.054925,91001.0,91000.0,0.10432744]
[1731769261812,0.139845,91001.0,91000.0,0.10432744]
[1731769262309,0.054925,91001.0,91000.0,0.2142266]
[1731769262516,0.3608,91004.0,91000.0,0.2142266]
[1731769262813,0.054925,91001.0,91000.0,0.2142266]
[1731769264106,0.05511289,91010.0,91000.0,0.2142266]
[1731769264311,0.08492,91009.0,91005.0,0.054922]
[1731769264512,0.054919,91011.0,91005.0,0.054922]
[1731769264715,0.08492,91010.0,91005.0,0.054922]
[1731769264904,0.054915,91017.0,91010.0,0.054919]
[1731769265099,0.139836,91016.0,91010.0,0.054919]
[1731769265510,0.139836,91016.0,91011.0,0.10988045]
[1731769265511,0.054917,91015.0,91011.0,0.10988045]
[1731769268410,0.08492,91016.0,91011.0,0.10988045]
[1731769268619,0.054917,91014.0,91011.0,0.10988045]
[1731769268820,0.054917,91014.0,91008.0,0.10432744]
[1731769269115,0.054918,91013.0,91012.0,0.1098738]
[1731769269302,0.054918,91013.0,91008.0,0.10432744]
[1731769269720,0.054918,91013.0,91009.0,0.1098738]
[1731769270317,0.08488,91017.0,91009.0,0.1098738]
[1731769270610,0.054918,91012.0,91009.0,0.1098738]
[1731769272808,0.054918,91012.0,91011.0,0.06845473]
[1731769273505,0.08488,91017.0,91011.0,0.17833216]
[1731769273716,0.054916,91015.0,91011.0,0.17833216]
[1731769274107,0.08488,91017.0,91012.0,0.19630504]
[1731769274312,0.054917,91014.0,91012.0,0.19630504]
[1731769274507,0.054917,91014.0,91013.0,0.19630504]
[1731769274714,0.054917,91014.0,91013.0,0.30667213]
[1731769275110,0.054917,91014.0,91011.0,0.06845473]
[1731769275314,0.054917,91014.0,91013.0,0.1098738]
[1731769275511,0.054917,91014.0,91011.0,0.33094821]
[1731769276019,0.08488,91017.0,91011.0,0.06845473]
[1731769276211,0.13163169,91016.0,91013.0,0.19691182]
[1731769276418,0.415717,91014.0,91012.0,0.30678683]
[1731769276715,0.415717,91014.0,91011.0,0.19691182]
[1731769276716,0.3608,91014.0,91011.0,0.19691182]
[1731769276913,0.054919,91011.0,91008.0,0.19691182]
[1731769277214,0.3608,91014.0,91004.0,0.19691182]
[1731769277215,0.054922,91005.0,91004.0,0.19691182]
[1731769277418,0.054922,91005.0,91004.0,0.06845473]
[1731769277719,0.054919,91011.0,91004.0,0.24355423]
[1731769278013,0.054919,91011.0,91010.0,0.06845473]
[1731769278217,0.054919,91011.0,91010.0,0.33091035]
[1731769278412,0.054919,91011.0,91010.0,0.06845473]
[1731769278608,0.054919,91011.0,91010.0,0.1783394]
[1731769278822,0.3608,91014.0,91012.0,0.054918]
[1731769279005,0.3608,91014.0,91013.0,0.00593102]
[1731769279513,0.3608,91014.0,91013.0,0.12610907]
[1731769279714,0.054914,91020.0,91014.0,0.054917]
[1731769279918,0.054914,91020.0,91015.0,0.68767241]
[1731769280108,0.054914,91020.0,91016.0,0.01623153]
[1731769280419,0.054914,91020.0,91019.0,0.3608]
[1731769280607,0.054914,91020.0,91019.0,0.37703153]
[1731769280914,0.05499178,91024.0,91020.0,0.054913]
[1731769281121,0.05499178,91024.0,91021.0,0.00593102]
[1731769281310,0.05499178,91024.0,91022.0,0.26805778]
[1731769281511,0.05499178,91024.0,91023.0,0.00593102]
[1731769281815,0.05499178,91024.0,91023.0,0.01623039]
[1731769282120,0.05499178,91024.0,91023.0,0.00593102]
[1731769282309,0.05499178,91024.0,91023.0,0.11579275]
[1731769282916,0.05499178,91024.0,91023.0,0.37791951]
[1731769283220,0.05499178,91024.0,91023.0,0.11579275]
[1731769283422,0.05499178,91024.0,91023.0,0.10986173]
[1731769283618,0.05499178,91024.0,91023.0,0.11580973]
[1731769283920,0.05499178,91024.0,91023.0,0.005948]
[1731769284115,0.05499178,91024.0,91023.0,0.11580973]
[1731769284524,0.18662546,91024.0,91023.0,0.11580973]
[1731769284932,0.05499178,91024.0,91023.0,0.10986173]
[1731769285219,0.05499178,91024.0,91010.0,0.19660731]
[1731769285416,0.054917,91014.0,91011.0,0.20253348]
[1731769285615,0.054917,91013.0,91012.0,0.31239521]
[1731769285916,0.054917,91013.0,91010.0,0.10427901]
[1731769286113,0.054917,91013.0,91012.0,0.10987501]
[1731769286319,0.054917,91013.0,91010.0,0.36640577]
[1731769286519,0.054917,91013.0,91010.0,0.10427901]
[1731769286823,0.08484,91014.0,91010.0,0.10427901]
[1731769286824,0.08484,91014.0,91012.0,0.10987501]
[1731769287120,0.08484,91014.0,91012.0,0.10987622]
[1731769287313,0.05517552,91016.0,91012.0,0.10987622]
[1731769287512,9.274e-05,91024.0,91014.0,0.26212676]
[1731769287727,9.274e-05,91024.0,91021.0,0.15919101]
[1731769287913,9.274e-05,91024.0,91023.0,0.19659212]
[1731769288619,9.274e-05,91024.0,91023.0,0.30645929]
[1731769288822,9.274e-05,91024.0,91023.0,0.10986717]
[1731769289715,9.274e-05,91024.0,91023.0,0.37199393]
[1731769289929,9.274e-05,91024.0,91023.0,0.12016638]
[1731769290130,9.274e-05,91024.0,91023.0,0.37199393]
[1731769290424,9.274e-05,91024.0,91023.0,0.10986717]
[1731769293230,9.274e-05,91024.0,91023.0,0.43778499]
[1731769293417,9.274e-05,91024.0,91023.0,0.10986717]
[1731769293725,9.274e-05,91024.0,91023.0,0.73651167]
[1731769293928,9.274e-05,91024.0,91023.0,0.40857754]
[1731769294426,9.274e-05,91024.0,91023.0,0.10986717]
[1731769294824,9.274e-05,91024.0,91023.0,0.43751026]
[1731769295016,9.274e-05,91024.0,91023.0,0.10986717]
[1731769295521,9.274e-05,91024.0,91023.0,0.44780888]
[1731769295932,0.00164809,91040.0,91023.0,0.44780888]
[1731769295933,0.08648809,91040.0,91023.0,0.73927604]
[1731769296125,0.054902,91039.0,91038.0,0.19655893]
[1731769296727,0.054902,91039.0,91038.0,0.30642066]
[1731769297026,0.054902,91039.0,91038.0,0.30652528]
[1731769297216,0.054902,91039.0,91038.0,0.10996635]
[1731769297421,0.054902,91039.0,91038.0,0.21424536]
[1731769297929,0.054902,91039.0,91038.0,0.2690607]
[1731769298124,0.054902,91039.0,91038.0,0.27496693]
[1731769299128,0.054902,91039.0,91038.0,0.22015159]
[1731769300531,0.054902,91039.0,91038.0,0.22015381]
[1731769300933,0.054902,91039.0,91038.0,0.21424536]
[1731769301432,0.054902,91039.0,91038.0,0.41080429]
[1731769301631,0.054902,91039.0,91038.0,0.21424536]
[1731769301832,0.054902,91039.0,91038.0,0.41080429]
[1731769302024,0.054902,91039.0,91038.0,0.21424536]
[1731769302428,0.054902,91039.0,91038.0,0.41080429]
[1731769302629,0.054902,91039.0,91038.0,0.21424536]
[1731769303030,0.054902,91039.0,91038.0,0.22014641]
[1731769303225,0.054902,91039.0,91038.0,0.41670534]
[1731769303421,0.054902,91039.0,91038.0,0.22014641]
[1731769304037,0.054902,91039.0,91038.0,0.22014633]
[1731769304926,0.00164809,91040.0,91039.0,0.054902]
[1731769305128,0.3608,91054.0,91044.0,0.054899]
[1731769305332,0.3608,91054.0,91052.0,0.10427901]
[1731769305333,0.054893,91053.0,91052.0,0.10427901]
[1731769306031,0.054893,91053.0,91052.0,0.21410575]
[1731769306737,0.054893,91053.0,91052.0,0.10982674]
[1731769306946,0.054893,91053.0,91052.0,0.17821542]
[1731769307130,0.054893,91053.0,91052.0,0.06838868]
[1731769307438,0.054893,91053.0,91052.0,0.17821542]
[1731769308435,0.054893,91053.0,91052.0,0.37451903]
[1731769308635,0.054893,91053.0,91052.0,0.17821542]
[1731769308839,0.054893,91053.0,91052.0,0.10982674]
[1731769309543,0.054895,91050.0,91049.0,0.19630361]
[1731769309740,0.054895,91050.0,91048.0,0.19630361]
[1731769309946,0.3608,91054.0,91049.0,0.30613035]
[1731769309947,0.054893,91053.0,91049.0,0.30613035]
[1731769310148,0.054895,91050.0,91049.0,0.10982674]
[1731769310441,0.054895,91050.0,91048.0,0.19630361]
[1731769310739,0.054895,91050.0,91049.0,0.10983036]
[1731769311046,0.054895,91050.0,91038.0,0.10431749]
[1731769311047,0.32948,91050.0,91038.0,0.19640823]
[1731769311229,0.32948,91050.0,91033.0,0.26338559]
[1731769311230,0.054904,91036.0,91033.0,0.00164745]
[1731769311430,0.054907,91031.0,91030.0,0.10421287]
[1731769311628,0.139747,91031.0,91030.0,0.10421287]
[1731769311841,0.139747,91031.0,91030.0,0.21404384]
[1731769313038,0.054903,91038.0,91030.0,0.22002335]
[1731769313227,0.08484,91033.0,91031.0,0.06088551]
[1731769313431,0.08484,91033.0,91032.0,0.00597951]
[1731769313840,0.08484,91033.0,91032.0,0.1158328]
[1731769314440,0.08484,91033.0,91032.0,0.10985329]
[1731769314641,0.08484,91033.0,91032.0,0.11582194]
[1731769314840,0.08484,91033.0,91032.0,0.22003481]
[1731769315035,0.139745,91033.0,91032.0,0.22003481]
[1731769315537,0.500545,91033.0,91032.0,0.11582194]
[1731769315742,0.054911,91023.0,91021.0,0.0051]
[1731769315940,0.44564,91022.0,91011.0,0.10421287]
[1731769316141,0.3608,91012.0,91011.0,0.10421287]
[1731769316736,0.3608,91012.0,91011.0,0.21407641]
[1731769318244,0.41566428,91012.0,91011.0,0.10986354]
[1731769318544,0.41566428,91012.0,91000.0,0.00164797]
[1731769318849,0.054925,91001.0,91000.0,0.00164797]
[1731769319549,0.054925,91001.0,91000.0,0.11153083]
[1731769324255,0.054937,90980.0,90960.0,0.10421287]
[1731769324443,0.500577,90980.0,90960.0,0.10421287]
[1731769324641,0.69056,90980.0,90960.0,0.10421287]
[1731769324955,0.054949,90961.0,90960.0,0.10421287]
[1731769325353,0.44564,90963.0,90946.0,0.00164932]
[1731769325653,0.3608,90953.0,90951.0,0.10421287]
[1731769325951,0.054954,90952.0,90951.0,0.10421287]
[1731769326343,0.054954,90952.0,90951.0,0.21416097]
[1731769326743,0.3608,90963.0,90951.0,0.21416097]
[1731769326942,0.3608,90963.0,90962.0,0.10421287]
[1731769327668,0.3608,90963.0,90962.0,0.21415493]
[1731769328047,0.3608,90973.0,90962.0,0.57495493]
[1731769328249,0.3608,90973.0,90971.0,0.10421287]
[1731769328454,0.415742,90973.0,90971.0,0.10421287]
[1731769328854,0.415742,90973.0,90972.0,0.10993541]
[1731769329755,0.054944,90969.0,90963.0,0.10421287]
[1731769329968,0.054945,90968.0,90963.0,0.10421287]
[1731769330252,0.054946,90967.0,90964.0,0.10993118]
[1731769330663,0.3608,90973.0,90964.0,0.10993118]
[1731769330961,0.3608,90965.0,90953.0,0.10421287]
[1731769331153,0.054953,90954.0,90953.0,0.10421287]
[1731769331464,0.054954,90952.0,90951.0,0.10992816]
[1731769331665,0.054957,90947.0,90945.0,0.10421287]
[1731769332046,0.054957,90947.0,90937.0,0.3608]
[1731769332047,0.054957,90947.0,90946.0,0.11157748]
[1731769333346,0.415757,90947.0,90946.0,0.11157748]
[1731769333959,0.054957,90947.0,90946.0,0.11157748]
[1731769336963,0.415757,90947.0,90946.0,0.11157748]
[1731769339460,0.054957,90947.0,90946.0,0.11157748]
[1731769341166,0.415757,90947.0,90946.0,0.11157748]
[1731769342864,0.415757,90947.0,90924.0,0.10421287]
[1731769342865,0.69068,90947.0,90924.0,0.10421287]
[1731769343065,0.054967,90932.0,90924.0,0.10421287]
[1731769343462,0.054967,90932.0,90925.0,0.10995475]
[1731769343859,0.3608,90933.0,90925.0,0.10995475]
[1731769344063,0.054969,90928.0,90925.0,0.10995475]
[1731769344363,0.054969,90928.0,90922.0,0.0536957]
[1731769344568,0.054969,90928.0,90923.0,0.10997652]
[1731769344964,0.054969,90928.0,90920.0,0.054973]
[1731769344965,0.054969,90928.0,90920.0,0.10990567]
[1731769345166,0.054969,90928.0,90924.0,0.21418939]
[1731769345367,0.054969,90928.0,90924.0,0.10421287]
[1731769345563,0.3608,90933.0,90926.0,0.05497]
[1731769345765,0.3608,90933.0,90922.0,0.3608]
[1731769345766,0.3608,90933.0,90931.0,0.15917987]
[1731769346166,0.3608,90933.0,90932.0,0.10997228]
[1731769346359,0.0051,90940.0,90938.0,0.054962]
[1731769346560,0.13105694,90956.0,90939.0,0.46501287]
[1731769346561,0.0051,90947.0,90939.0,0.46501287]
[1731769346761,0.054955,90951.0,90946.0,0.10421287]
[1731769347465,0.0051,90957.0,90947.0,0.16490933]
[1731769347665,0.139872,90957.0,90953.0,0.10421287]
[1731769347868,0.139872,90957.0,90950.0,0.054955]
[1731769347869,0.054953,90955.0,90950.0,0.054955]
[1731769348266,0.054953,90955.0,90951.0,0.10994447]
[1731769349472,0.08492,90957.0,90951.0,0.16489947]
[1731769349868,0.08492,90957.0,90951.0,0.054955]
[1731769350074,0.0051,90963.0,90953.0,0.10421287]
[1731769350281,0.50122701,90964.0,90958.0,0.054951]
[1731769350462,0.50122701,90964.0,90953.0,0.10421287]
[1731769350463,0.44572,90964.0,90953.0,0.10421287]
[1731769350667,0.054951,90958.0,90953.0,0.10421287]
[1731769351181,0.415752,90956.0,90954.0,0.10994568]
[1731769351568,0.054954,90953.0,90945.0,0.10421287]
[1731769351880,0.054954,90953.0,90946.0,0.10994387]
[1731769352269,0.3608,90956.0,90952.0,0.10421287]
[1731769352571,0.05495,90960.0,90954.0,0.054953]
[1731769352885,0.3608,90964.0,90953.0,0.10995173]
[1731769353173,0.3608,90964.0,90960.0,0.10421287]
[1731769353383,0.49185694,90964.0,90960.0,0.10421287]
[1731769353769,0.3608,90964.0,90960.0,0.10421287]
[1731769353966,0.3608,90964.0,90961.0,0.16489106]
[1731769354480,0.3608,90964.0,90961.0,0.10994206]
[1731769354481,0.054948,90963.0,90961.0,0.10994206]
[1731769355174,0.3608,90964.0,90961.0,0.10994206]
[1731769355373,0.14151259,90971.0,90965.0,0.054946]
[1731769355576,0.054944,90970.0,90965.0,0.054946]
[1731769355764,0.08656959,90971.0,90965.0,0.054946]
[1731769355971,0.00164959,90971.0,90966.0,0.10993601]
[1731769356974,0.054944,90969.0,90966.0,0.10993601]
[1731769357375,0.054944,90969.0,90961.0,0.054949]
[1731769357785,0.054944,90969.0,90967.0,0.10992816]
[1731769357979,0.054946,90966.0,90961.0,0.054949]
[1731769358174,0.054947,90965.0,90960.0,0.10421287]
[1731769358376,0.054947,90965.0,90962.0,0.10992876]
[1731769358676,0.1314598,90969.0,90960.0,0.10421287]
[1731769358882,0.054948,90964.0,90961.0,0.10992876]
[1731769359073,0.1314598,90969.0,90961.0,0.10992876]
[1731769359476,0.1314598,90968.0,90961.0,0.10992876]
[1731769359681,0.054946,90966.0,90961.0,0.10992876]
[1731769360178,0.1314598,90965.0,90961.0,0.10992876]
[1731769360485,0.1314598,90964.0,90961.0,0.10992876]
[1731769360674,0.1314598,90967.0,90961.0,0.10992876]
[1731769361182,0.1314598,90969.0,90961.0,0.10992876]
[1731769361378,0.1314598,90969.0,90963.0,0.054947]
[1731769361886,0.1314598,90969.0,90962.0,0.054948]
[1731769361887,0.1864048,90969.0,90962.0,0.054948]
[1731769362081,0.1864048,90969.0,90964.0,0.1099336]
[1731769362274,0.1864048,90969.0,90962.0,0.054948]
[1731769362477,0.1314598,90970.0,90967.0,0.10421287]
[1731769363173,0.00164959,90971.0,90967.0,0.10421287]
[1731769363174,0.00164959,90971.0,90968.0,0.10993178]
[1731769363375,0.00164959,90971.0,90969.0,0.054944]
[1731769364075,0.00164959,90971.0,90970.0,0.10992816]
[1731769365682,0.00164959,90971.0,90967.0,0.10421287]
[1731769365888,0.05659259,90971.0,90970.0,0.10992574]
[1731769366087,0.05659259,90971.0,90967.0,0.10421287]
[1731769366390,0.05659259,90971.0,90970.0,0.10992574]
[1731769366683,0.05659259,90971.0,90967.0,0.10421287]
[1731769367384,0.05659259,90971.0,90968.0,0.10992755]
[1731769367385,0.054944,90970.0,90968.0,0.10992755]
[1731769370590,0.00164959,90971.0,90959.0,0.10421287]
[1731769370794,0.054947,90965.0,90959.0,0.10421287]
[1731769371085,0.00164959,90971.0,90960.0,0.10992755]
[1731769371389,0.054948,90963.0,90960.0,0.10992755]
[1731769371594,0.054949,90962.0,90960.0,0.10992755]
[1731769372697,0.054954,90952.0,90949.0,0.26244063]
[1731769372882,0.3608,90953.0,90944.0,0.3666535]
[1731769373087,0.054956,90949.0,90944.0,0.10421287]
[1731769373287,0.3608,90953.0,90945.0,0.37239296]
[1731769373485,0.054957,90947.0,90945.0,0.10995233]
[1731769374491,0.054961,90942.0,90939.0,0.0016492]
[1731769374692,0.054961,90942.0,90940.0,0.10995535]
[1731769377392,0.054957,90949.0,90940.0,0.10995535]
[1731769377582,0.41455327,90953.0,90940.0,0.37239598]
[1731769377583,0.3608,90944.0,90940.0,0.37239598]
[1731769377787,0.3608,90944.0,90940.0,0.10995535]
[1731769377788,0.05496,90942.0,90940.0,0.10995535]
[1731769380288,0.3608,90944.0,90940.0,0.10995535]
[1731769380696,0.3608,90944.0,90938.0,0.054963]
[1731769380997,0.3608,90944.0,90941.0,0.1099614]
[1731769381192,0.3608,90944.0,90940.0,0.26244063]
[1731769381501,0.3608,90944.0,90942.0,0.1099614]
[1731769381798,0.3608,90944.0,90941.0,0.26244063]
[1731769381799,0.415759,90944.0,90941.0,0.26244063]
[1731769382099,0.0852,90950.0,90941.0,0.1099614]
[1731769382303,0.0852,90950.0,90935.0,0.32805079]
[1731769382304,0.0852,90950.0,90944.0,0.10421287]
[1731769382595,0.054958,90946.0,90944.0,0.10421287]
[1731769383017,0.0852,90950.0,90941.0,0.26226536]
[1731769383194,0.054958,90946.0,90945.0,0.10995958]
[1731769383501,0.054962,90940.0,90938.0,0.26226536]
[1731769383887,0.054962,90940.0,90939.0,0.10995656]
[1731769384391,0.3608,90943.0,90936.0,0.26226536]
[1731769384589,0.054963,90938.0,90933.0,0.26226536]
[1731769384795,0.054963,90938.0,90937.0,0.10996321]
[1731769385002,0.054963,90938.0,90933.0,0.26226536]
[1731769385195,0.054963,90938.0,90934.0,0.10996321]
[1731769385390,0.3608,90943.0,90934.0,0.10996321]
[1731769385695,0.3608,90943.0,90932.0,0.10996563]
[1731769385894,0.054966,90933.0,90932.0,0.10996563]
[1731769386096,0.054968,90929.0,90927.0,0.26226536]
[1731769386597,0.054968,90929.0,90928.0,0.10997168]
[1731769387398,0.054968,90929.0,90926.0,0.26225612]
[1731769387589,0.054968,90929.0,90928.0,0.10997652]
[1731769388103,0.054968,90929.0,90928.0,0.26225612]
[1731769388290,0.054968,90929.0,90928.0,0.10997652]
[1731769388487,0.054968,90929.0,90925.0,0.26225612]
[1731769388690,0.054968,90929.0,90928.0,0.10997652]
[1731769389100,0.054968,90929.0,90925.0,0.26225612]
[1731769389298,0.054968,90929.0,90928.0,0.10997652]
[1731769389500,0.054968,90929.0,90926.0,0.26225612]
[1731769389705,0.054968,90929.0,90928.0,0.10997652]
[1731769390201,0.05497,90926.0,90922.0,0.16045392]
[1731769390398,0.05497,90926.0,90925.0,0.10997652]
[1731769390600,0.05497,90926.0,90922.0,0.16045392]
[1731769390808,0.054968,90930.0,90923.0,0.10997652]
[1731769391100,0.05497,90926.0,90923.0,0.10997652]
[1731769391993,0.054971,90925.0,90923.0,0.10997652]
[1731769394498,0.0864,90930.0,90923.0,0.10997652]
[1731769394700,0.054967,90931.0,90929.0,0.10421287]
[1731769395303,0.054967,90931.0,90930.0,0.10998196]
[1731769398901,0.054967,90931.0,90930.0,0.37223808]
[1731769399397,0.054967,90931.0,90930.0,0.10998196]
[1731769400102,0.054967,90931.0,90930.0,0.37248908]
[1731769400404,0.054967,90931.0,90930.0,0.10998196]
[1731769400801,0.054967,90931.0,90930.0,0.3725818]
[1731769401002,0.054967,90931.0,90930.0,0.10998196]
[1731769402315,0.054967,90931.0,90922.0,0.16045392]
[1731769402316,0.08644,90932.0,90926.0,0.32805079]
[1731769402608,0.054969,90927.0,90926.0,0.43802489]
[1731769402910,0.08644,90932.0,90922.0,0.16045392]
[1731769403101,0.141406,90932.0,90930.0,0.26284471]
[1731769403408,0.05497,90926.0,90925.0,0.32855508]
[1731769403599,0.05497,90926.0,90922.0,0.16045392]
[1731769403600,0.05497,90926.0,90923.0,0.32855508]
[1731769403801,0.054971,90925.0,90924.0,0.33548227]
[1731769404000,0.054971,90925.0,90922.0,0.16045392]
[1731769404001,0.054971,90925.0,90922.0,0.48905993]
[1731769404212,0.054971,90925.0,90924.0,0.10997833]
[1731769404410,0.054971,90925.0,90923.0,0.32860601]
[1731769404601,0.054971,90925.0,90924.0,0.44546085]
[1731769404805,0.08644,90930.0,90924.0,0.44546085]
[1731769405027,0.08644,90930.0,90929.0,0.10421287]
[1731769405506,0.3608,90935.0,90929.0,0.4411044]
[1731769405507,0.44724,90935.0,90929.0,0.4411044]
[1731769405702,0.44724,90935.0,90933.0,0.054965]
[1731769405904,0.502205,90935.0,90934.0,0.33689153]
[1731769406305,0.502205,90935.0,90934.0,0.46214629]
[1731769406610,0.141405,90935.0,90934.0,0.46214629]
[1731769407808,0.141405,90935.0,90934.0,0.43853763]
[1731769408109,0.141405,90935.0,90934.0,0.46657399]
[1731769408613,0.141405,90935.0,90934.0,0.10997531]
[1731769409116,0.08644,90935.0,90933.0,0.328553]
[1731769409308,0.08644,90935.0,90921.0,0.054973]
[1731769409309,0.054965,90934.0,90932.0,0.43852226]
[1731769409505,0.054965,90934.0,90932.0,0.10996926]
[1731769409707,0.054965,90934.0,90933.0,0.328553]
[1731769410114,0.054965,90934.0,90932.0,0.43852226]
[1731769410315,0.054965,90934.0,90932.0,0.328553]
[1731769410514,0.054965,90934.0,90933.0,0.43852347]
[1731769410715,0.054965,90934.0,90933.0,0.10997047]
[1731769410923,0.44780001,90935.0,90929.0,0.328553]
[1731769411117,0.054967,90931.0,90929.0,0.328553]
[1731769411311,0.054968,90929.0,90927.0,0.328553]
[1731769411609,0.054969,90928.0,90927.0,0.328553]
[1731769411813,0.054969,90928.0,90927.0,0.68356071]
[1731769412020,0.054969,90928.0,90927.0,0.35500771]
[1731769412217,0.054969,90928.0,90927.0,0.46497999]
[1731769412422,0.054969,90928.0,90927.0,0.46498303]
[1731769415014,0.054969,90928.0,90927.0,0.46472999]
[1731769415221,0.054969,90928.0,90927.0,0.43848697]
[1731769415411,0.054969,90928.0,90927.0,0.10997228]
[1731769415818,0.054969,90928.0,90926.0,0.32851469]
[1731769416116,0.054969,90928.0,90927.0,0.79275742]
[1731769416322,0.054969,90928.0,90927.0,0.46435662]
[1731769416620,0.054969,90928.0,90927.0,0.3543789]
[1731769416917,0.054969,90928.0,90927.0,0.79157173]
[1731769417118,0.054969,90928.0,90927.0,0.43821629]
[1731769417319,0.054969,90928.0,90927.0,0.79155412]
[1731769417618,0.054969,90928.0,90927.0,0.43821629]
[1731769417822,0.054969,90928.0,90927.0,0.4625678]
[1731769418317,0.054969,90928.0,90927.0,0.43823128]
[1731769418521,0.054969,90928.0,90927.0,0.10997833]
[1731769418817,0.054971,90924.0,90922.0,0.32825295]
[1731769419116,0.44668,90923.0,90920.0,0.32825295]
[1731769419427,0.140852,90922.0,90920.0,0.32825295]
[1731769419615,0.140852,90922.0,90921.0,0.43823612]
[1731769419815,0.140852,90922.0,90921.0,0.10998317]
[1731769420029,0.140852,90922.0,90920.0,0.32825295]
[1731769420227,0.140852,90922.0,90921.0,0.10998317]
[1731769420526,0.140852,90922.0,90919.0,0.32825295]
[1731769420719,0.054973,90921.0,90919.0,0.32825295]
[1731769421218,0.054973,90921.0,90920.0,0.10998559]
[1731769421831,0.054973,90921.0,90917.0,0.32825295]
[1731769422121,0.054973,90921.0,90920.0,0.1099868]
[1731769422316,0.054973,90921.0,90920.0,0.3455753]
[1731769422509,0.054973,90921.0,90920.0,0.67360187]
[1731769422712,0.054973,90921.0,90919.0,0.32809148]
[1731769422915,0.054973,90921.0,90920.0,0.43807949]
[1731769423223,0.054973,90921.0,90920.0,0.32811031]
[1731769423519,0.054973,90921.0,90920.0,0.4380965]
[1731769423721,0.054973,90921.0,90920.0,0.78289752]
[1731769425932,0.054972,90923.0,90922.0,0.10998559]
[1731769426529,0.054972,90923.0,90918.0,0.054975]
[1731769426727,0.054972,90923.0,90919.0,0.10998377]
[1731769427138,0.054973,90921.0,90919.0,0.10998377]
[1731769427322,0.054973,90921.0,90919.0,0.37234981]
[1731769427519,0.054973,90921.0,90913.0,0.38302907]
[1731769427718,0.054973,90921.0,90920.0,0.10998559]
[1731769428122,0.054973,90921.0,90916.0,0.32805207]
[1731769428437,0.054973,90921.0,90916.0,0.10998559]
[1731769428623,0.054973,90921.0,90915.0,0.38302807]
[1731769428815,0.054973,90921.0,90917.0,0.10998619]
[1731769429020,0.054973,90921.0,90914.0,0.32805207]
[1731769429021,0.3608,90921.0,90914.0,0.32805207]
[1731769429222,0.3608,90921.0,90917.0,0.26238898]
[1731769429439,0.054975,90918.0,90916.0,0.37237517]
[1731769429727,0.054975,90918.0,90916.0,0.26238898]
[1731769429928,0.054975,90918.0,90917.0,0.10998982]
[1731769430338,0.054975,90918.0,90909.0,0.32970206]
[1731769430339,0.054976,90916.0,90915.0,0.26238898]
[1731769430926,0.054976,90916.0,90915.0,0.10998982]
[1731769431331,0.054978,90913.0,90912.0,0.26238898]
[1731769431533,0.140858,90913.0,90912.0,0.37238122]
[1731769431725,0.140858,90913.0,90912.0,0.26238898]
[1731769432031,0.140858,90913.0,90912.0,0.10999224]
[1731769432434,0.054979,90911.0,90909.0,0.26403897]
[1731769432630,0.054979,90911.0,90910.0,6.475e-05]
[1731769433331,0.054979,90911.0,90910.0,0.11006062]
[1731769434137,0.054979,90911.0,90910.0,0.30673434]
[1731769434338,0.054979,90911.0,90910.0,0.30672743]
[1731769434923,0.054979,90911.0,90910.0,0.11006062]
[1731769438036,0.1864388,90911.0,90910.0,0.11006062]
[1731769438541,0.054979,90911.0,90910.0,0.11006062]
[1731769439225,0.054979,90911.0,90910.0,6.475e-05]
[1731769441536,0.384979,90911.0,90910.0,6.475e-05]
[1731769442846,0.61793675,90911.0,90910.0,2.5e-07]
[1731769443227,0.453612,90911.0,90910.0,2.5e-07]
[1731769443438,0.61793675,90911.0,90910.0,2.5e-07]
[1731769444137,0.453612,90911.0,90910.0,2.5e-07]
[1731769444433,0.140899,90911.0,90910.0,2.5e-07]
[1731769445628,0.054979,90911.0,90910.0,0.17863154]
[1731769445948,0.054979,90911.0,90910.0,0.10999854]
[1731769445949,0.209532,90911.0,90910.0,0.10999854]
[1731769446539,0.140899,90911.0,90910.0,0.10999854]
[1731769447840,0.140899,90911.0,90910.0,2.5e-07]
[1731769448932,0.470899,90911.0,90910.0,2.5e-07]